fUST/lending_fUST_20240611
["ID","MTS","AMOUNT","RATE_DAILY","PERIOD"]
[329007083,1718057443070,-624.44,0.00019452,2]
[329007084,1718057443080,-500.0,0.00019452,2]
[329007085,1718057443090,-500.0,0.00019452,2]
[329007086,1718057443100,-500.0,0.00019452,2]
[329007087,1718057443111,-500.0,0.00019452,2]
[329007088,1718057443121,-500.0,0.00019452,2]
[329007089,1718057443132,-500.0,0.00019452,2]
[329007090,1718057443142,-500.0,0.00019452,2]
[329007091,1718057443152,-500.0,0.00019452,2]
[329007092,1718057443162,-402.7512881,0.00019452,2]
[329007094,1718057443172,-500.0,0.00019452,2]
[329007096,1718057443182,-500.0,0.00019452,2]
[329007098,1718057443192,-500.0,0.00019452,2]
[329007100,1718057443202,-500.0,0.00019452,2]
[329007102,1718057443212,-500.0,0.00019452,2]
[329007104,1718057443221,-500.0,0.00019452,2]
[329007106,1718057443231,-500.0,0.00019452,2]
[329007108,1718057443241,-500.0,0.00019452,2]
[329007109,1718057443250,-500.0,0.00019452,2]
[329007111,1718057443260,-500.0,0.00019452,2]
[329007113,1718057443271,-500.0,0.00019452,2]
[329007115,1718057443283,-500.0,0.00019452,2]
[329007116,1718057443292,-500.0,0.00019452,2]
[329007117,1718057443302,-500.0,0.00019452,2]
[329007119,1718057443314,-500.0,0.00019452,2]
[329007121,1718057443325,-500.0,0.00019452,2]
[329007123,1718057443335,-500.0,0.00019452,2]
[329007125,1718057443345,-500.0,0.00019452,2]
[329007127,1718057443355,-529.02,0.00019452,2]
[329007129,1718057443365,-504.56,0.00019452,2]
[329007131,1718057443375,-200.33754297,0.00019452,2]
[329007133,1718057443385,-501.53,0.00019452,2]
[329007135,1718057443398,-786.19,0.00019452,2]
[329007137,1718057443408,-500.0,0.00019452,2]
[329007140,1718057443419,-550.91,0.00019452,2]
[329007143,1718057443429,-500.0,0.00019452,2]
[329007148,1718057443439,-500.0,0.00019452,2]
[329007150,1718057443448,-500.0,0.00019452,2]
[329007152,1718057443458,-500.0,0.00019452,2]
[329007154,1718057443468,-821.44,0.00019452,2]
[329007155,1718057443477,-1407.63,0.00019452,2]
[329007156,1718057443487,-500.0,0.00019452,2]
[329007157,1718057443497,-500.0,0.00019452,2]
[329007158,1718057443506,-500.0,0.00019452,2]
[329007159,1718057443515,-500.0,0.00019452,2]
[329007160,1718057443526,-500.0,0.00019452,2]
[329007161,1718057443535,-500.0,0.00019452,2]
[329007162,1718057443545,-4407.57,0.00019452,2]
[329007163,1718057443555,-500.0,0.00019452,2]
[329007164,1718057443565,-500.0,0.00019452,2]
[329007165,1718057443575,-500.0,0.00019452,2]
[329007166,1718057443586,-541.37,0.00019452,2]
[329007167,1718057443595,-500.0,0.00019452,2]
[329007168,1718057443605,-500.0,0.00019452,2]
[329007169,1718057443615,-500.0,0.00019452,2]
[329007170,1718057443625,-1323.27,0.00019452,2]
[329007171,1718057443635,-500.0,0.00019452,2]
[329007172,1718057443645,-500.0,0.00019452,2]
[329007173,1718057443654,-500.0,0.00019452,2]
[329007174,1718057443664,-1926.36,0.00019452,2]
[329007175,1718057443673,-500.0,0.00019452,2]
[329007176,1718057443684,-500.0,0.00019452,2]
[329007177,1718057443693,-1682.09,0.00019452,2]
[329007178,1718057443703,-500.0,0.00019452,2]
[329007179,1718057443714,-500.0,0.00019452,2]
[329007180,1718057443723,-1467.94,0.00019452,2]
[329007181,1718057443841,-500.0,0.00019452,2]
[329007182,1718057443852,-500.0,0.00019452,2]
[329007183,1718057443861,-500.0,0.00019452,2]
[329007184,1718057443871,-500.0,0.00019452,2]
[329007185,1718057443881,-444.86908608,0.00019452,2]
[329007186,1718057443892,-500.0,0.00019452,2]
[329007187,1718057443901,-500.0,0.00019452,2]
[329007188,1718057443911,-500.0,0.00019452,2]
[329007189,1718057443921,-500.0,0.00019452,2]
[329007190,1718057443930,-500.0,0.00019452,2]
[329007191,1718057443940,-153.0,0.00019452,2]
[329007192,1718057443950,-205.3053491,0.00019452,2]
[329007193,1718057443960,-205.3053491,0.000195,2]
[329007194,1718057443970,-500.0,0.00019725,2]
[329007195,1718057443979,-640.51260421,0.00019725,2]
[329007196,1718057443989,-500.0,0.00019726,2]
[329007198,1718057443999,-500.0,0.00019726,2]
[329007199,1718057444009,-500.0,0.00019726,2]
[329007200,1718057444019,-500.0,0.00019726,2]
[329007201,1718057444031,-500.0,0.00019726,2]
[329007202,1718057444040,-500.0,0.00019726,2]
[329007203,1718057444050,-500.0,0.00019726,2]
[329007204,1718057444059,-500.0,0.00019726,2]
[329007205,1718057444069,-500.0,0.00019726,2]
[329007206,1718057444078,-500.0,0.00019726,2]
[329007207,1718057444088,-500.0,0.00019726,2]
[329007208,1718057444098,-342.74002637,0.00019726,2]
[329007209,1718057444114,-500.0,0.00019726,2]
[329007210,1718057444124,-500.0,0.00019726,2]
[329007211,1718057444134,-500.0,0.00019726,2]
[329007212,1718057444144,-500.0,0.00019726,2]
[329007213,1718057444153,-509.01903119,0.00019726,2]
[329007214,1718057444163,-529.02,0.00019726,2]
[329007215,1718057444173,-501.53,0.00019726,2]
[329007216,1718057444183,-786.19,0.00019726,2]
[329007217,1718057444193,-550.91,0.00019726,2]
[329007218,1718057444202,-500.0,0.00019726,2]
[329007219,1718057444212,-500.0,0.00019726,2]
[329007220,1718057444222,-500.0,0.00019726,2]
[329007221,1718057444231,-821.44,0.00019726,2]
[329007222,1718057444241,-1407.63,0.00019726,2]
[329007223,1718057444251,-500.0,0.00019726,2]
[329007224,1718057444261,-500.0,0.00019726,2]
[329007225,1718057444271,-4407.57,0.00019726,2]
[329007226,1718057444282,-500.0,0.00019726,2]
[329007227,1718057444293,-500.0,0.00019726,2]
[329007228,1718057444303,-500.0,0.00019726,2]
[329007229,1718057444314,-1323.27,0.00019726,2]
[329007230,1718057444325,-500.0,0.00019726,2]
[329007231,1718057444335,-1926.36,0.00019726,2]
[329007232,1718057444345,-530.43445442,0.00019726,2]
[329007233,1718057444356,-500.0,0.00019726,2]
[329007234,1718057444366,-1682.09,0.00019726,2]
[329007235,1718057444376,-500.0,0.00019726,2]
[329007236,1718057444386,-1467.94,0.00019726,2]
[329007237,1718057444397,-500.0,0.00019726,2]
[329007238,1718057444408,-500.0,0.00019726,2]
[329007239,1718057444418,-500.0,0.00019726,2]
[329007240,1718057444428,-500.0,0.00019726,2]
[329007241,1718057444437,-500.0,0.00019726,2]
[329007242,1718057444447,-500.0,0.00019726,2]
[329007243,1718057444457,-1402.44052473,0.00019757,2]
[329007244,1718057444467,-500.0,0.00019999,2]
[329007245,1718057444477,-427.49058505,0.0002,2]
[329007246,1718057444487,-500.0,0.0002,2]
[329007247,1718057444496,-500.0,0.0002,2]
[329007248,1718057444506,-500.0,0.0002,2]
[329007249,1718057444516,-500.0,0.0002,2]
[329007250,1718057444527,-500.0,0.0002,2]
[329007251,1718057444536,-500.0,0.0002,2]
[329007252,1718057444546,-529.02,0.0002,2]
[329007253,1718057444556,-501.53,0.0002,2]
[329007254,1718057444566,-786.19,0.0002,2]
[329007255,1718057444576,-550.91,0.0002,2]
[329007256,1718057444586,-500.0,0.0002,2]
[329007257,1718057444596,-500.0,0.0002,2]
[329007258,1718057444606,-821.44,0.0002,2]
[329007259,1718057444616,-1407.63,0.0002,2]
[329007260,1718057444627,-500.0,0.0002,2]
[329007261,1718057444636,-500.0,0.0002,2]
[329007262,1718057444646,-4407.57,0.0002,2]
[329007263,1718057444656,-500.0,0.0002,2]
[329007265,1718057444666,-500.0,0.0002,2]
[329007266,1718057444676,-500.0,0.0002,2]
[329007267,1718057444685,-1323.27,0.0002,2]
[329007268,1718057444695,-500.0,0.0002,2]
[329007269,1718057444705,-1926.36,0.0002,2]
[329007270,1718057444715,-1682.09,0.0002,2]
[329007271,1718057444724,-500.0,0.0002,2]
[329007272,1718057444734,-1467.94,0.0002,2]
[329007273,1718057444744,-500.0,0.0002,2]
[329007274,1718057444753,-500.0,0.0002,2]
[329007275,1718057444764,-500.0,0.0002,2]
[329007276,1718057444773,-500.0,0.0002,2]
[329007277,1718057444785,-500.0,0.0002,2]
[329007278,1718057444794,-1402.44052473,0.00020097,2]
[329007279,1718057444804,-368.61,0.00020245,2]
[329007280,1718057444814,-500.0,0.00020273,2]
[329007281,1718057444824,-500.0,0.00020273,2]
[329007282,1718057444833,-500.0,0.00020273,2]
[329007283,1718057444843,-531.498741,0.00020273,2]
[329007284,1718057444853,-500.0,0.00020273,2]
[329007285,1718057444863,-529.02,0.00020273,2]
[329007286,1718057444872,-501.53,0.00020273,2]
[329007287,1718057444881,-786.19,0.00020273,2]
[329007288,1718057444891,-550.91,0.00020273,2]
[329007289,1718057444900,-500.0,0.00020273,2]
[329007290,1718057444909,-500.0,0.00020273,2]
[329007291,1718057444918,-821.44,0.00020273,2]
[329007292,1718057444928,-1407.63,0.00020273,2]
[329007293,1718057444937,-70.78337314,0.00020273,2]
[329007294,1718057445129,-429.21662686,0.00020273,2]
[329007295,1718057445139,-500.0,0.00020273,2]
[329007296,1718057445149,-2470.49002899,0.00020273,2]
[329007297,1718057445161,-1094.18813609,0.00020273,2]
[329007298,1718057445172,-842.89183492,0.00020273,2]
[329007299,1718057445182,-500.0,0.00020273,2]
[329007300,1718057445192,-500.0,0.00020273,2]
[329007301,1718057445202,-500.0,0.00020273,2]
[329007302,1718057445212,-1323.27,0.00020273,2]
[329007303,1718057445222,-500.0,0.00020273,2]
[329007304,1718057445232,-1926.36,0.00020273,2]
[329007305,1718057445241,-1682.09,0.00020273,2]
[329007306,1718057445252,-500.0,0.00020273,2]
[329007307,1718057445262,-1467.94,0.00020273,2]
[329007308,1718057445272,-500.0,0.00020273,2]
[329007309,1718057445284,-500.0,0.00020273,2]
[329007310,1718057445294,-500.0,0.00020273,2]
[329007311,1718057445304,-500.0,0.00020273,2]
[329007312,1718057445316,-500.0,0.00020273,2]
[329007313,1718057445326,-1402.44052473,0.00020437,2]
[329007314,1718057445336,-500.0,0.00020446,2]
[329007315,1718057445345,-29992.87900763,0.00020447,3]
[329007316,1718057445357,-281.7,0.00020539,5]
[329007317,1718057445367,-500.0,0.00020547,2]
[329007318,1718057445377,-500.0,0.00020547,2]
[329007319,1718057445386,-500.0,0.00020547,2]
[329007320,1718057445399,-500.0,0.00020547,2]
[329007321,1718057445409,-529.02,0.00020547,2]
[329007322,1718057445419,-501.53,0.00020547,2]
[329007323,1718057445428,-786.19,0.00020547,2]
[329007324,1718057445438,-550.91,0.00020547,2]
[329007325,1718057445447,-500.0,0.00020547,2]
[329007326,1718057445456,-500.0,0.00020547,2]
[329007327,1718057445465,-821.44,0.00020547,2]
[329007328,1718057445475,-1407.63,0.00020547,2]
[329007329,1718057445484,-500.0,0.00020547,2]
[329007330,1718057445494,-500.0,0.00020547,2]
[329007331,1718057445503,-4407.57,0.00020547,2]
[329007332,1718057445513,-500.0,0.00020547,2]
[329007333,1718057445522,-500.0,0.00020547,2]
[329007334,1718057445535,-500.0,0.00020547,2]
[329007335,1718057445544,-1323.27,0.00020547,2]
[329007336,1718057445554,-500.0,0.00020547,2]
[329007337,1718057445564,-1926.36,0.00020547,2]
[329007338,1718057445573,-1682.09,0.00020547,2]
[329007339,1718057445583,-500.0,0.00020547,2]
[329007340,1718057445592,-1467.94,0.00020547,2]
[329007341,1718057445602,-500.0,0.00020547,2]
[329007342,1718057445611,-500.0,0.00020547,2]
[329007343,1718057445621,-500.0,0.00020547,2]
[329007344,1718057445630,-318.99191809,0.00020547,2]
[329007345,1718057445640,-500.0,0.00020547,2]
[329007346,1718057445651,-587.0,0.0002064,2]
[329007347,1718057445660,-500.0,0.0002082,2]
[329007348,1718057445670,-500.0,0.00020821,2]
[329007349,1718057445680,-500.0,0.00020821,2]
[329007350,1718057445690,-500.0,0.00020821,2]
[329007351,1718057445700,-500.0,0.00020821,2]
[329007352,1718057445710,-529.02,0.00020821,2]
[329007353,1718057445719,-204.16227902,0.00020821,2]
[329007386,1718058633968,-2113.20996993,0.00017338,2]
[329007387,1718058633979,-300.0,0.00017354,2]
[329007388,1718058633993,-300.0,0.00017354,2]
[329007389,1718058634002,-786.67175703,0.00017355,2]
[329007390,1718058634012,-515.52689997,0.00017355,2]
[329007392,1718058634023,-252.35751207,0.00017355,2]
[329007393,1718058634033,-317.42037263,0.00017355,2]
[329007395,1718058634042,-524.2716986,0.00017355,2]
[329007397,1718058634053,-282.66579838,0.00017355,2]
[329007399,1718058634064,-204.81434597,0.00017355,2]
[329007401,1718058634074,-488.62407014,0.00017355,2]
[329007403,1718058634084,-173.93827808,0.00017355,2]
[329007404,1718058634102,-2419.75834322,0.00017356,2]
[329007405,1718058634113,-24900.0,0.00017357,2]
[329007406,1718058634123,-742.00378971,0.000179,2]
[329007407,1718058634133,-1058.866801,0.00018,2]
[329007408,1718058634143,-155.01751066,0.00018175,2]
[329007409,1718058634156,-156.28239737,0.00018175,2]
[329007410,1718058634166,-3071.27011912,0.00018175,2]
[329007411,1718058634176,-391.90089404,0.00018175,2]
[329007412,1718058634186,-209.17920224,0.00018175,2]
[329007413,1718058634196,-310.01240407,0.00018175,2]
[329007414,1718058634206,-774.10443301,0.00018175,2]
[329007415,1718058634217,-156.94169323,0.00018175,2]
[329007416,1718058634226,-1342.02915058,0.00018175,2]
[329007417,1718058634236,-775.76303521,0.00018176,2]
[329007418,1718058634247,-1340.60536211,0.000189,2]
[329007419,1718058634258,-983.27271899,0.00019078,2]
[329007420,1718058634269,-420.0,0.0001909,2]
[329007421,1718058634279,-246.58,0.00019168,3]
[329007422,1718058634289,-739.75,0.00019168,3]
[329007423,1718058634299,-1387.60271581,0.00019176,2]
[329007435,1718058639462,-283.73459242,0.00019176,2]
[329007436,1718058639473,-500.0,0.00019178,2]
[329007437,1718058639483,-500.0,0.00019178,2]
[329007438,1718058639494,-500.0,0.00019178,2]
[329007439,1718058639504,-83.82336162,0.00019178,2]
[329007440,1718058639765,-416.17663838,0.00019178,2]
[329007441,1718058639775,-500.0,0.00019178,2]
[329007442,1718058639786,-500.0,0.00019178,2]
[329007443,1718058639796,-500.0,0.00019178,2]
[329007444,1718058639807,-500.0,0.00019178,2]
[329007445,1718058639817,-500.0,0.00019178,2]
[329007446,1718058639827,-500.0,0.00019178,2]
[329007447,1718058639838,-500.0,0.00019178,2]
[329007448,1718058639848,-128.4776798,0.00019178,2]
[329007538,1718058644975,-371.5223202,0.00019178,2]
[329007540,1718058644990,-236.57316791,0.00019178,2]
[329007542,1718058645002,-263.42683209,0.00019178,2]
[329007544,1718058645013,-500.0,0.00019178,2]
[329007546,1718058645024,-500.0,0.00019178,2]
[329007548,1718058645036,-500.0,0.00019178,2]
[329007550,1718058645046,-559.53090958,0.00019178,2]
[329007552,1718058645056,-500.0,0.00019178,2]
[329007554,1718058645070,-500.0,0.00019178,2]
[329007556,1718058645081,-500.0,0.00019178,2]
[329007559,1718058645091,-500.0,0.00019178,2]
[329007560,1718058645101,-500.0,0.00019178,2]
[329007563,1718058645111,-500.0,0.00019178,2]
[329007565,1718058645121,-500.0,0.00019178,2]
[329007567,1718058645131,-500.0,0.00019178,2]
[329007569,1718058645141,-500.0,0.00019178,2]
[329007570,1718058645151,-500.0,0.00019178,2]
[329007573,1718058645162,-394.95705111,0.00019178,2]
[329007575,1718058645171,-500.0,0.00019178,2]
[329007576,1718058645181,-500.0,0.00019178,2]
[329007578,1718058645192,-500.0,0.00019178,2]
[329007580,1718058645203,-500.0,0.00019178,2]
[329007583,1718058645213,-500.0,0.00019178,2]
[329007584,1718058645224,-494.81392714,0.00019178,2]
[329007585,1718058645234,-500.0,0.00019178,2]
[329007586,1718058645244,-500.0,0.00019178,2]
[329007587,1718058645255,-500.0,0.00019178,2]
[329007588,1718058645265,-509.01903119,0.00019178,2]
[329007589,1718058645276,-500.0,0.00019178,2]
[329007591,1718058645286,-500.0,0.00019178,2]
[329007592,1718058645296,-500.0,0.00019178,2]
[329007594,1718058645306,-500.0,0.00019178,2]
[329007596,1718058645317,-500.0,0.00019178,2]
[329007598,1718058645326,-500.0,0.00019178,2]
[329007600,1718058645336,-500.0,0.00019178,2]
[329007602,1718058645346,-500.0,0.00019178,2]
[329007604,1718058645355,-507.69431826,0.00019178,2]
[329007605,1718058645366,-500.0,0.00019178,2]
[329007607,1718058645375,-500.0,0.00019178,2]
[329007609,1718058645385,-500.0,0.00019178,2]
[329007611,1718058645394,-510.54717067,0.00019178,2]
[329007613,1718058645405,-500.0,0.00019178,2]
[329007615,1718058645416,-500.0,0.00019178,2]
[329007617,1718058645426,-500.0,0.00019178,2]
[329007619,1718058645437,-500.0,0.00019178,2]
[329007620,1718058645448,-500.0,0.00019178,2]
[329007621,1718058645458,-470.12334212,0.00019178,2]
[329007622,1718058645542,-29.87665788,0.00019178,2]
[329007623,1718058645552,-500.0,0.00019178,2]
[329007624,1718058645562,-500.0,0.00019178,2]
[329007625,1718058645572,-500.0,0.00019178,2]
[329007626,1718058645582,-141.46065035,0.00019178,2]
[329008004,1718058729570,927.49792139,9.999e-05,2]
[329008005,1718058742516,1100.75857609,0.00015,2]
[329008120,1718059833195,-250.0,0.00016507,2]
[329008122,1718059833205,-2054.1101477,0.00016732,2]
[329008124,1718059833215,-300.0,0.00017109,2]
[329008126,1718059833225,-300.0,0.00017109,2]
[329008128,1718059833235,-24900.0,0.0001711,2]
[329008130,1718059833244,-306.967234,0.00017283,2]
[329008132,1718059833254,-15326.19232459,0.00017637,2]
[329008143,1718059833541,-13744.84701171,0.00017637,2]
[329008145,1718059833551,-1058.866801,0.00018,2]
[329008147,1718059833561,-995.00385245,0.00018009,2]
[329008149,1718059833571,-155.09577723,0.00018109,2]
[329008151,1718059833580,-156.8401175,0.00018109,2]
[329008153,1718059833590,-632.62413596,0.00018109,2]
[329008154,1718059833600,-2763.72024136,0.00018109,2]
[329008155,1718059833610,-187.33268178,0.00018109,2]
[329008156,1718059833620,-774.36341557,0.00018109,2]
[329008157,1718059833630,-1444.57547444,0.0001811,2]
[329008158,1718059833640,-606.70222548,0.000185,2]
[329008159,1718059833650,-152.68719635,0.000187,2]
[329008160,1718059833660,-420.0,0.00018819,2]
[329008161,1718059833669,-9587.15546833,0.00018898,2]
[329008162,1718059833679,-893.73690808,0.000189,2]
[329008163,1718059833690,-1268.11065211,0.00018978,2]
[329008164,1718059833702,-1268.11065208,0.00019071,2]
[329008165,1718059833711,-5880.58975543,0.00019078,15]
[329008225,1718059839444,-2826.36939591,0.00019074,2]
[329008228,1718059839457,-1412.66804377,0.00019074,2]
[329008230,1718059839467,-414.76995635,0.00019078,15]
[329008232,1718059839480,-3153.66665873,0.00019078,15]
[329008234,1718059839491,-2000.0,0.00019078,2]
[329008236,1718059839501,-1268.11065208,0.00019165,2]
[329008237,1718059839511,-493.16,0.00019166,3]
[329008239,1718059839522,-2909.84206115,0.00019172,4]
[329008241,1718059839533,-309.9380124,0.00019174,2]
[329008243,1718059839544,-746.65282836,0.00019174,2]
[329008245,1718059839555,-1071.66241748,0.00019174,2]
[329008248,1718059839566,-1155.63089272,0.00019176,2]
[329008249,1718059839576,-29029.52074002,0.00019176,2]
[329008252,1718059839588,-1689.82993633,0.00019176,2]
[329008254,1718059839597,-5732.60532387,0.00019178,15]
[329008256,1718059839608,-500.0,0.00019178,2]
[329008258,1718059839617,-500.0,0.00019178,2]
[329008260,1718059839627,-500.0,0.00019178,2]
[329008262,1718059839637,-360.50000001,0.00019178,2]
[329008263,1718059839648,-500.0,0.00019178,2]
[329008266,1718059839659,-364.62349711,0.00019178,2]
[329008268,1718059839669,-221.30414487,0.00019178,2]
[329008270,1718059839680,-500.0,0.00019178,2]
[329008272,1718059839691,-500.0,0.00019178,2]
[329008274,1718059839701,-500.0,0.00019178,2]
[329008276,1718059839711,-500.0,0.00019178,2]
[329008278,1718059839722,-500.0,0.00019178,2]
[329008280,1718059839732,-500.0,0.00019178,2]
[329008282,1718059839742,-500.0,0.00019178,2]
[329008283,1718059839753,-600.0,0.00019178,2]
[329008284,1718059839764,-500.0,0.00019178,2]
[329008285,1718059839774,-500.0,0.00019178,2]
[329008287,1718059839784,-376.92770915,0.00019178,2]
[329008289,1718059839794,-500.0,0.00019178,2]
[329008290,1718059839804,-500.0,0.00019178,2]
[329008291,1718059839814,-500.0,0.00019178,2]
[329008292,1718059839823,-576.92770915,0.00019178,2]
[329008293,1718059839832,-309.95350775,0.00019178,2]
[329008294,1718059839843,-500.0,0.00019178,2]
[329008295,1718059839853,-500.0,0.00019178,2]
[329008296,1718059839863,-500.0,0.00019178,2]
[329008297,1718059839874,-376.92770915,0.00019178,2]
[329008298,1718059839883,-500.0,0.00019178,2]
[329008299,1718059839894,-500.0,0.00019178,2]
[329008300,1718059839904,-200.0,0.00019178,2]
[329008301,1718059839913,-500.0,0.00019178,2]
[329008302,1718059839924,-500.0,0.00019178,2]
[329008303,1718059839933,-500.0,0.00019178,2]
[329008304,1718059839944,-500.0,0.00019178,2]
[329008305,1718059839953,-391.32068171,0.00019178,2]
[329008306,1718059839962,-500.0,0.00019178,2]
[329008307,1718059839971,-500.0,0.00019178,2]
[329008308,1718059839981,-500.0,0.00019178,2]
[329008309,1718059839991,-500.0,0.00019178,2]
[329008310,1718059840001,-500.0,0.00019178,2]
[329008311,1718059840011,-500.0,0.00019178,2]
[329008312,1718059840021,-500.0,0.00019178,2]
[329008313,1718059840030,-500.0,0.00019178,2]
[329008314,1718059840041,-500.0,0.00019178,2]
[329008315,1718059840051,-500.0,0.00019178,2]
[329008316,1718059840060,-500.0,0.00019178,2]
[329008317,1718059840070,-500.0,0.00019178,2]
[329008318,1718059840080,-500.0,0.00019178,2]
[329008319,1718059840090,-500.0,0.00019178,2]
[329008320,1718059840101,-328.39712378,0.00019178,2]
[329008321,1718059840111,-500.0,0.00019178,2]
[329008322,1718059840120,-500.0,0.00019178,2]
[329008323,1718059840130,-458.55223386,0.00019178,2]
[329008324,1718059840140,-500.0,0.00019178,2]
[329008325,1718059840150,-500.0,0.00019178,2]
[329008326,1718059840159,-500.0,0.00019178,2]
[329008327,1718059840169,-500.0,0.00019178,2]
[329008328,1718059840178,-506.76649597,0.00019178,2]
[329008329,1718059840187,-500.0,0.00019178,2]
[329008330,1718059840197,-528.11575486,0.00019178,2]
[329008331,1718059840207,-470.64774371,0.00019178,2]
[329008332,1718059840216,-500.0,0.00019178,2]
[329008333,1718059840227,-500.0,0.00019178,2]
[329008334,1718059840237,-500.00000001,0.00019178,2]
[329008335,1718059840247,-367.58821222,0.00019178,2]
[329008336,1718059840256,-500.0,0.00019178,2]
[329008337,1718059840266,-500.0,0.00019178,2]
[329008338,1718059840275,-503.23950912,0.00019178,2]
[329008339,1718059840285,-500.0,0.00019178,2]
[329008340,1718059840295,-500.0,0.00019178,2]
[329008341,1718059840304,-500.90714459,0.00019178,2]
[329008342,1718059840314,-500.0,0.00019178,2]
[329008343,1718059840324,-500.0,0.00019178,2]
[329008344,1718059840334,-401.51570392,0.00019178,2]
[329008345,1718059840344,-500.0,0.00019178,2]
[329008346,1718059840354,-464.32304756,0.00019178,2]
[329008347,1718059840364,-500.0,0.00019178,2]
[329008348,1718059840373,-500.0,0.00019178,2]
[329008349,1718059840383,-500.0,0.00019178,2]
[329008350,1718059840397,-1000.0,0.00019178,2]
[329008351,1718059840407,-500.0,0.00019178,2]
[329008352,1718059840417,-380.53537634,0.00019178,2]
[329008353,1718059840426,-500.0,0.00019178,2]
[329008354,1718059840437,-500.0,0.00019178,2]
[329008355,1718059840447,-500.0,0.00019178,2]
[329008356,1718059840548,-500.0,0.00019178,2]
[329008357,1718059840582,-514.89883152,0.00019178,2]
[329008358,1718059840592,-511.45452275,0.00019178,2]
[329008359,1718059840603,-500.0,0.00019178,2]
[329008360,1718059840613,-500.0,0.00019178,2]
[329008361,1718059840622,-500.0,0.00019178,2]
[329008362,1718059840633,-500.0,0.00019178,2]
[329008363,1718059840642,-500.0,0.00019178,2]
[329008364,1718059840652,-506.7361173,0.00019178,2]
[329008365,1718059840662,-500.0,0.00019178,2]
[329008366,1718059840671,-500.0,0.00019178,2]
[329008367,1718059840681,-500.0,0.00019178,2]
[329008368,1718059840692,-500.0,0.00019178,2]
[329008369,1718059840702,-500.0,0.00019178,2]
[329008370,1718059840712,-500.0,0.00019178,2]
[329008371,1718059840722,-500.0,0.00019178,2]
[329008372,1718059840732,-500.0,0.00019178,2]
[329008373,1718059840741,-500.0,0.00019178,2]
[329008374,1718059840750,-511.01430458,0.00019178,2]
[329008375,1718059840760,-500.0,0.00019178,2]
[329008376,1718059840770,-500.0,0.00019178,2]
[329008377,1718059840780,-500.0,0.00019178,2]
[329008378,1718059840790,-500.0,0.00019178,2]
[329008379,1718059840799,-333.5,0.00019178,2]
[329008380,1718059840810,-500.0,0.00019178,2]
[329008381,1718059840819,-500.0,0.00019178,2]
[329008382,1718059840829,-500.0,0.00019178,2]
[329008383,1718059840839,-500.0,0.00019178,2]
[329008384,1718059840849,-500.0,0.00019178,2]
[329008385,1718059840859,-500.0,0.00019178,2]
[329008386,1718059840868,-500.0,0.00019178,2]
[329008387,1718059840878,-500.0,0.00019178,2]
[329008388,1718059840888,-500.0,0.00019178,2]
[329008389,1718059840897,-257.55586363,0.00019178,2]
[329008390,1718059840907,-500.0,0.00019178,2]
[329008391,1718059840917,-500.0,0.00019178,2]
[329008392,1718059840927,-500.0,0.00019178,2]
[329008393,1718059840937,-500.0,0.00019178,2]